bitfinex/quotes_ETHUSD_20250324
["timestamp","ask_amount","ask_price","bid_price","bid_amount"]
[1742808265287,4.78321,2090.7,2090.5,5.50856524]
[1742808267082,10.06790699,2090.8,2090.5,5.15025729]
[1742808267299,14.85085699,2090.8,2090.6,1.52688073]
[1742808267445,10.06790699,2090.8,2090.6,1.52688073]
[1742808267991,5.28501699,2090.8,2090.6,6.86131073]
[1742808268156,5.28501699,2090.8,2090.6,2.07808073]
[1742808268361,5.28501699,2090.8,2090.7,1.2011798]
[1742808268560,4.78266,2090.9,2090.7,1.2011798]
[1742808270194,9.56549,2090.9,2090.7,1.2011798]
[1742808270340,4.78266,2090.9,2090.7,1.2011798]
[1742808270705,9.56545,2090.9,2090.7,1.2011798]
[1742808270988,9.56545,2090.9,2090.8,0.32792605]
[1742808271886,7.78227,2091.1,2090.8,0.32792605]
[1742808272123,4.78262,2090.9,2090.8,0.32792605]
[1742808276298,4.78301,2090.8,2090.6,0.5512]
[1742808276627,4.78321,2090.7,2090.5,4.612]
[1742808277299,4.78289,2090.8,2090.5,4.612]
[1742808278001,4.78317,2090.7,2090.5,4.612]
[1742808281918,4.78289,2090.8,2090.5,4.612]
[1742808282143,4.78272,2090.9,2090.6,1.473047]
[1742808282700,4.78272,2090.9,2090.6,6.256287]
[1742808283334,4.78272,2090.9,2090.6,1.473047]
[1742808283704,9.56552,2090.9,2090.6,1.473047]
[1742808283908,4.78272,2090.9,2090.7,1.6380427]
[1742808287339,9.5655,2090.9,2090.7,1.6380427]
[1742808287504,4.78272,2090.9,2090.7,1.6380427]
[1742808289240,9.5655,2090.9,2090.7,1.6380427]
[1742808289539,4.78272,2090.9,2090.7,1.6380427]
[1742808289748,4.78285,2090.8,2090.7,1.99395091]
[1742808290043,4.78285,2090.8,2090.7,0.35590821]
[1742808290403,4.78308,2090.7,2090.6,4.96390821]
[1742808291438,4.78308,2090.7,2090.6,0.35590821]
[1742808291815,4.78269,2090.9,2090.6,0.35590821]
[1742808292015,4.78252,2091.0,2090.6,0.35590821]
[1742808292216,4.78278,2090.9,2090.6,0.35590821]
[1742808292938,4.78286,2090.8,2090.6,0.35590821]
[1742808293308,4.78286,2090.8,2090.7,0.35590821]
[1742808294820,4.78278,2090.9,2090.7,0.35590821]
[1742808295837,4.78278,2090.9,2090.8,0.35590821]
[1742808298642,5.28501699,2091.3,2090.8,0.35590821]
[1742808298643,0.8188,2091.5,2091.1,4.78205]
[1742808298942,10.06614699,2091.6,2091.2,14.703895]
[1742808299244,10.88240699,2091.9,2091.5,4.78114]
[1742808299446,15.66293699,2091.9,2091.5,4.78114]
[1742808299748,0.8169,2091.9,2091.5,4.7811]
[1742808299911,4.78058,2091.8,2091.5,4.7811]
[1742808300107,4.78058,2091.8,2091.6,4.607]
[1742808300645,4.78044,2091.9,2091.6,4.96290821]
[1742808301144,9.56095,2091.9,2091.6,4.96290821]
[1742808301444,7.78013,2092.0,2091.6,6.41545503]
[1742808301608,4.78013,2092.0,2091.6,11.74757503]
[1742808301814,7.78013,2092.0,2091.6,11.74757503]
[1742808302441,7.78013,2092.0,2091.7,1.53066571]
[1742808302622,3.0,2092.0,2091.8,4.78045]
[1742808303210,0.8297,2092.3,2091.7,1.53066571]
[1742808303546,4.77949,2092.3,2092.0,0.5512]
[1742808303738,3.0,2092.2,2092.0,5.1572]
[1742808303933,0.7895,2092.5,2092.0,5.1572]
[1742808304244,4.77962,2092.3,2092.0,5.1572]
[1742808304446,4.77975,2092.2,2092.0,5.1572]
[1742808305632,4.77945,2092.3,2092.0,5.1572]
[1742808305838,4.77945,2092.3,2092.0,6.628986]
[1742808306714,9.55908,2092.3,2092.0,6.628986]
[1742808306933,4.77945,2092.3,2092.0,6.628986]
[1742808307945,12.55855,2092.4,2092.0,6.628986]
[1742808308149,7.77922,2092.4,2092.0,11.408966]
[1742808308320,3.0,2092.4,2092.1,5.9206666]
[1742808309050,7.77929,2092.4,2092.1,5.9206666]
[1742808310737,7.77929,2092.4,2092.1,1.1408966]
[1742808312025,4.77955,2092.3,2092.1,1.1408966]
[1742808314527,3.0,2092.4,2092.1,5.9207666]
[1742808314731,3.0,2092.4,2092.0,9.93729]
[1742808314732,4.77926,2092.4,2092.2,1.58580566]
[1742808314929,6.04181699,2092.9,2092.3,0.5512]
[1742808315160,4.77822,2092.9,2092.5,9.5577]
[1742808315340,9.55642,2092.9,2092.5,4.77884]
[1742808315545,4.7783,2092.8,2092.6,1.489584]
[1742808316743,4.7782,2092.9,2092.6,1.489584]
[1742808317059,9.55641,2092.9,2092.6,1.489584]
[1742808317362,4.77829,2092.8,2092.6,1.489584]
[1742808320459,4.77812,2092.9,2092.6,1.489584]
[1742808320772,4.77812,2092.9,2092.7,0.6268464]
[1742808321462,9.55634,2092.9,2092.7,0.6268464]
[1742808321642,4.77812,2092.9,2092.7,0.6268464]
[1742808322497,9.55637,2092.9,2092.7,0.6268464]
[1742808322665,4.77812,2092.9,2092.7,0.6268464]
[1742808323678,9.55636,2092.9,2092.7,0.6268464]
[1742808323976,9.55629,2092.9,2092.7,0.6268464]
[1742808324178,4.77812,2092.9,2092.7,0.6268464]
[1742808325074,9.55633,2092.9,2092.7,0.6268464]
[1742808325249,4.77812,2092.9,2092.7,0.6268464]
[1742808325682,9.55636,2092.9,2092.7,0.6268464]
[1742808326080,9.55635,2092.9,2092.7,0.6268464]
[1742808327583,4.77828,2092.8,2092.6,1.489584]
[1742808327882,4.77828,2092.8,2092.6,0.938384]
[1742808332684,10.31559,2093.0,2092.6,5.717044]
[1742808332885,0.7597,2093.0,2092.6,0.938384]
[1742808333186,4.77831,2092.8,2092.6,0.938384]
[1742808333390,4.77831,2092.8,2092.7,0.60730578]
[1742808333990,4.77831,2092.8,2092.7,0.60204792]
[1742808334368,4.77831,2092.8,2092.6,1.29423779]
[1742808335861,4.77851,2092.7,2092.6,0.35585379]
[1742808336058,13.93855649,2092.7,2092.6,0.35585379]
[1742808336273,13.89072699,2092.7,2092.6,0.35585379]
[1742808337292,9.55951,2092.2,2092.0,11.88785597]
[1742808337458,4.77972,2092.2,2092.0,11.88785597]
[1742808338862,9.55957,2092.2,2092.1,0.35585379]
[1742808339077,4.77972,2092.2,2092.1,0.35585379]
[1742808340280,9.55958,2092.2,2092.0,11.88785597]
[1742808340887,4.77988,2092.1,2092.0,11.88785597]
[1742808341797,8.28501699,2092.7,2092.0,11.88785597]
[1742808342099,4.77966,2092.2,2092.0,11.88785597]
[1742808342297,0.7832,2092.6,2092.0,16.66795597]
[1742808342477,4.77951,2092.3,2092.0,11.88785597]
[1742808342995,4.77951,2092.3,2092.0,4.95785379]
[1742808344070,4.77951,2092.3,2092.1,0.35585379]
[1742808345168,4.77905,2092.5,2092.1,1.86279617]
[1742808345564,4.77928,2092.4,2092.1,1.86279617]
[1742808346494,4.77897,2092.5,2092.1,0.35585379]
[1742808346701,4.77965,2092.2,2092.1,0.35585379]
[1742808347406,4.77965,2092.2,2092.0,4.95785379]
[1742808347817,10.31398,2092.2,2092.0,0.35585379]
[1742808348013,5.53415,2092.2,2092.0,0.35585379]
[1742808348320,10.31399,2092.2,2092.0,0.35585379]
[1742808349429,5.53415,2092.2,2092.0,0.35585379]
[1742808349832,5.53415,2092.2,2091.9,4.95785379]
[1742808349833,10.31399,2092.2,2091.9,4.95785379]
[1742808350331,4.77989,2092.1,2091.9,4.95785379]
[1742808350835,5.53415,2092.2,2091.9,4.95785379]
[1742808351132,10.31397,2092.2,2091.9,4.95785379]
[1742808351937,4.78011,2092.0,2091.9,0.35585379]
[1742808352137,5.60521,2092.0,2091.9,0.35585379]
[1742808352337,13.89022699,2092.0,2091.9,0.35585379]
[1742808353899,4.78125,2091.5,2091.4,4.602]
[1742808354227,5.56811,2091.6,2091.2,0.35585379]
[1742808354228,4.78171,2091.3,2091.2,0.35585379]
[1742808354658,4.78127,2091.5,2091.2,3.54865917]
[1742808354808,4.78121,2091.6,2091.3,5.33286]
[1742808355517,4.78142,2091.5,2091.2,3.19280538]
[1742808355711,4.78194,2091.2,2091.1,4.95885379]
[1742808356632,5.59882,2091.3,2091.1,4.603]
[1742808357029,10.38076,2091.3,2091.1,4.603]
[1742808357239,4.78217,2091.1,2091.0,26.419]
[1742808357831,4.78209,2091.2,2091.0,26.419]
[1742808358034,4.78144,2091.5,2091.1,4.78213]
[1742808358349,9.5628,2091.5,2091.1,4.78213]
[1742808359243,4.78151,2091.4,2091.0,26.9702]
[1742808359451,4.7818,2091.3,2091.0,26.9702]
[1742808359755,4.78217,2091.1,2091.0,26.419]
[1742808360739,4.78201,2091.2,2091.0,26.419]
[1742808361342,3.0,2091.4,2091.1,0.5512]
[1742808361531,3.0,2091.4,2091.1,5.33328]
[1742808361914,7.78139,2091.5,2091.1,5.33322]
[1742808362125,12.5628,2091.5,2091.1,5.33322]
[1742808362557,12.5628,2091.5,2091.1,5.33321]
[1742808362939,4.7815,2091.4,2091.1,5.33321]
[1742808363354,7.78139,2091.5,2091.1,5.33321]
[1742808363355,7.78139,2091.5,2091.1,9.8583548]
[1742808363572,3.0,2091.5,2091.2,4.78188]
[1742808363751,10.06612699,2091.6,2091.3,9.38469]
[1742808364871,14.84732699,2091.6,2091.3,4.603]
[1742808365056,4.78126,2091.5,2091.3,4.603]
[1742808365360,10.06612699,2091.6,2091.3,4.603]
[1742808365535,9.56233,2091.6,2091.3,4.603]
[1742808365936,4.78111,2091.6,2091.3,4.603]
[1742808366375,4.78111,2091.6,2091.3,9.38471]
[1742808367168,4.78111,2091.6,2091.3,4.603]
[1742808368066,4.78147,2091.5,2091.3,4.603]
[1742808369069,4.78148,2091.4,2091.3,4.603]
[1742808370857,4.78132,2091.5,2091.3,4.603]
[1742808371433,4.78148,2091.4,2091.3,4.603]
[1742808373283,4.78178,2091.3,2091.1,0.35528883]
[1742808373986,9.56371,2091.3,2091.1,0.35528883]
[1742808374704,4.78178,2091.3,2091.1,0.35528883]
[1742808374861,4.78178,2091.3,2091.0,31.022]
[1742808375057,4.78178,2091.3,2091.0,35.80439]
[1742808375787,4.78178,2091.3,2091.0,9.38539]
[1742808376191,4.78178,2091.3,2091.0,4.603]
[1742808376885,4.78178,2091.3,2091.0,9.38536]
[1742808377087,4.78148,2091.4,2091.0,15.694525]
[1742808377460,4.78148,2091.4,2091.0,16.05023032]
[1742808377660,9.56314,2091.4,2091.0,11.26787032]
[1742808377860,9.56314,2091.4,2091.0,9.74096532]
[1742808378296,4.78173,2091.3,2091.0,9.74096532]
[1742808378872,4.78173,2091.3,2091.1,0.35570532]
[1742808379386,4.78148,2091.4,2091.1,0.35570532]
[1742808379586,4.7818,2091.3,2091.1,0.35570532]
[1742808379972,4.7818,2091.3,2091.2,0.35570532]
[1742808380765,4.78148,2091.4,2091.2,0.35570532]
[1742808381274,4.78148,2091.4,2091.1,0.35570532]
[1742808381662,9.56314,2091.4,2091.1,0.35570532]
[1742808381864,9.56312,2091.4,2091.1,0.35570532]
[1742808382394,4.78178,2091.3,2091.1,0.35570532]
[1742808382992,4.78178,2091.3,2091.2,0.35570532]
[1742808383194,5.815176,2091.3,2091.2,0.35570532]
[1742808383409,5.8630055,2091.3,2091.2,0.35570532]
[1742808383614,5.815176,2091.3,2091.2,0.35570532]
[1742808383796,14.95612249,2091.3,2091.2,0.35570532]
[1742808384001,14.90829299,2091.3,2091.2,0.35570532]
[1742808384579,14.90829299,2091.3,2090.2,4.7842]
[1742808384580,0.8189,2090.9,2090.0,0.1524]
[1742808384775,4.78377,2090.4,2090.0,0.1524]
[1742808385012,4.78377,2090.4,2090.0,4.93695]
[1742808385013,0.8189,2090.4,2090.0,4.93695]
[1742808385191,0.8189,2090.4,2090.1,4.7844]
[1742808385389,3.0,2090.5,2090.1,4.7844]
[1742808386276,7.78364,2090.5,2090.0,4.93695]
[1742808386501,7.78364,2090.5,2090.0,8.589165]
[1742808387090,4.78377,2090.4,2090.1,4.603]
[1742808387515,3.8011,2090.6,2090.2,4.78413]
[1742808387814,8.58452,2090.6,2090.1,9.3874]
[1742808388312,7.78345,2090.6,2090.2,0.5512]
[1742808388686,12.56699,2090.6,2090.2,0.5512]
[1742808389084,7.78345,2090.6,2090.2,0.5512]
[1742808390011,7.78345,2090.6,2090.2,5.33532]
[1742808390012,3.0,2090.6,2090.2,5.33532]
[1742808390215,7.78335,2090.6,2090.2,6.822835]
[1742808390389,3.0,2090.6,2090.2,2.038715]
[1742808390582,3.0,2090.6,2090.3,4.78379]
[1742808391004,10.06788699,2090.8,2090.3,4.78379]
[1742808391727,4.7831,2090.7,2090.3,4.78379]
[1742808392022,4.7831,2090.7,2090.4,0.6822505]
[1742808392411,5.54445,2090.6,2090.1,9.38829]
[1742808392626,5.54445,2090.6,2090.1,14.17265]
[1742808392792,5.54445,2090.6,2090.1,9.38829]
[1742808392992,4.78354,2090.5,2090.1,9.38829]
[1742808394215,4.78354,2090.5,2090.1,4.604]
[1742808394533,4.78389,2090.4,2090.1,4.604]
[1742808395730,4.78402,2090.3,2090.1,4.604]
[1742808396726,4.78382,2090.4,2090.1,4.604]
[1742808396926,4.78382,2090.4,2090.1,8.311333]
[1742808397144,9.56779,2090.4,2090.1,8.311333]
[1742808398199,4.78382,2090.4,2090.1,8.311333]
[1742808398398,4.78382,2090.4,2090.0,0.1524]
[1742808398601,4.7844,2090.2,2090.1,4.604]
[1742808400400,9.56881,2090.2,2090.0,0.1524]
[1742808400800,4.7844,2090.2,2090.0,0.1524]
[1742808401229,4.78446,2090.1,2090.0,0.1524]
[1742808401422,4.78429,2090.2,2090.0,0.1524]
[1742808401937,9.56868,2090.2,2090.0,0.1524]
[1742808402232,4.78429,2090.2,2090.0,0.1524]
[1742808402935,4.78446,2090.1,2090.0,0.1524]
[1742808403536,6.620015,2090.1,2090.0,0.1524]
[1742808403737,9.620015,2090.1,2090.0,0.1524]
[1742808404039,9.6678445,2090.1,2090.0,0.1524]
[1742808405716,14.90503199,2090.1,2090.0,0.1524]
[1742808408958,14.90503199,2090.1,2089.1,4.78659]
[1742808408959,5.827194,2089.6,2088.3,1.438089]
[1742808409131,0.7778,2089.0,2088.4,0.5512]
[1742808409334,4.78747,2088.8,2088.4,0.5512]
[1742808409532,0.7924,2089.2,2088.4,0.5512]
[1742808409853,4.78713,2089.0,2088.5,4.612]
[1742808410062,4.78762,2088.8,2088.5,4.612]
[1742808410353,4.7876,2088.8,2088.5,4.612]
[1742808410529,4.7876,2088.8,2088.6,0.08977879]
[1742808411459,9.57518,2088.8,2088.6,0.08977879]
[1742808411857,4.78766,2088.7,2088.6,0.08977879]
[1742808412444,4.8354895,2088.7,2088.6,0.08977879]
[1742808412648,4.8354895,2088.7,2088.4,0.5512]
[1742808412649,4.7882,2088.5,2088.3,4.613]
[1742808412849,4.7882,2088.5,2088.4,0.09370203]
[1742808413048,1.52338295,2088.7,2088.2,0.35590609]
[1742808413225,4.78866,2088.3,2088.0,0.5512]
[1742808413427,4.78786,2088.7,2088.0,0.5512]
[1742808413628,0.7787,2089.0,2088.3,5.33977]
[1742808413952,0.7787,2089.0,2088.7,4.78766]
[1742808414147,0.7787,2089.0,2088.4,4.632]
[1742808414455,7.78728,2088.9,2088.4,9.42021]
[1742808414637,12.57465,2088.9,2088.4,9.42021]
[1742808414844,12.57462,2088.9,2088.5,4.78811]
[1742808415050,7.78728,2088.9,2088.5,4.78811]
[1742808415362,7.78728,2088.9,2088.5,4.78802]
[1742808415567,3.0,2088.9,2088.5,4.78811]
[1742808415740,3.0,2088.9,2088.6,4.78781]
[1742808415931,3.0,2088.9,2088.7,0.5512]
[1742808416333,5.66425699,2089.2,2088.3,5.33855]
[1742808416538,5.66425699,2089.2,2088.0,5.89036]
[1742808416539,4.78728,2088.9,2088.5,9.57603]
[1742808416765,4.78728,2088.9,2088.5,4.788]
[1742808419734,4.78728,2088.9,2088.5,9.57599]
[1742808419938,4.78728,2088.9,2088.5,4.78799]
[1742808421152,4.78728,2088.9,2088.6,0.09556098]
[1742808422206,4.78766,2088.7,2088.6,0.09556098]
[1742808422342,4.78799,2088.6,2088.3,31.60393854]
[1742808422544,4.78799,2088.6,2088.3,26.46]
[1742808422945,4.78823,2088.5,2088.3,26.46]
[1742808424577,4.78795,2088.6,2088.3,31.24857]
[1742808425079,4.78795,2088.6,2088.3,26.46]
[1742808426078,10.84665699,2088.8,2088.3,4.78855]
[1742808426280,10.84665699,2088.8,2088.3,5.33975]
[1742808426281,4.78771,2088.7,2088.3,5.33975]
[1742808426572,6.05921699,2088.8,2088.5,4.78795]
[1742808426778,10.84669699,2088.8,2088.4,4.78823]
[1742808427280,15.63428699,2088.8,2088.4,4.78823]
[1742808427457,10.84669699,2088.8,2088.4,4.78823]
[1742808428180,5.28501699,2088.8,2088.4,1.05725387]
[1742808428355,5.28501699,2088.8,2088.6,4.78784]
[1742808429592,5.28501699,2088.8,2088.6,4.78774]
[1742808429760,5.28501699,2088.8,2088.6,9.5755]
[1742808429965,5.28501699,2088.8,2088.6,4.78774]
[1742808430186,5.28501699,2088.8,2088.7,5.33886]
[1742808431275,5.28501699,2088.8,2088.7,6.84907213]
[1742808431669,4.78637,2089.3,2088.9,4.78707]
[1742808431887,3.0,2089.3,2089.0,4.78689]
[1742808432084,3.0,2089.3,2088.9,9.40407]
[1742808432289,7.7864,2089.3,2088.9,9.40407]
[1742808432685,12.57287,2089.3,2088.9,9.40407]
[1742808432887,7.7864,2089.3,2088.9,9.40407]
[1742808433869,12.57285,2089.3,2088.9,9.40407]
[1742808435008,7.7864,2089.3,2088.9,9.40407]
[1742808435381,0.7556,2089.6,2089.0,0.5512]
[1742808435572,0.7556,2089.6,2089.3,4.7862]
[1742808435777,4.78537,2089.7,2089.3,9.39927]
[1742808436577,4.78537,2089.7,2089.3,9.75479133]
[1742808436791,3.7556,2089.8,2089.5,4.78576]
[1742808436975,5.3386894,2089.8,2089.5,4.78576]
[1742808438497,10.1238394,2089.8,2089.5,4.78576]
[1742808439212,10.1238394,2089.8,2089.4,5.14145133]
[1742808439387,10.1238394,2089.8,2089.4,9.92738133]
[1742808439587,10.1238394,2089.8,2089.4,9.92741133]
[1742808439791,10.1238394,2089.8,2089.4,5.14145133]
[1742808441009,3.7556,2089.8,2089.4,4.78593]
[1742808441217,3.7556,2089.8,2089.5,4.78573]
[1742808442002,8.54083,2089.8,2089.5,4.78573]
[1742808442205,13.32616,2089.8,2089.4,4.78593]
[1742808442479,8.54083,2089.8,2089.4,4.78593]
[1742808443883,4.78554,2089.7,2089.3,9.95031]
[1742808444081,4.78554,2089.7,2089.3,14.73649]
[1742808444286,8.54083,2089.8,2089.4,4.78601]
[1742808445216,4.78537,2089.7,2089.4,4.78601]
[1742808445413,4.78563,2089.6,2089.3,4.613]
[1742808445584,4.78634,2089.3,2089.1,0.35552133]
[1742808445786,4.78634,2089.3,2089.1,4.96252133]
[1742808447237,5.56922,2089.2,2089.1,0.35552133]
[1742808447623,4.7868,2089.1,2088.9,31.069]
[1742808447799,4.7868,2089.1,2088.9,26.462]
[1742808448407,5.56922,2089.2,2088.9,26.462]
[1742808448919,10.35592,2089.2,2088.9,26.462]
[1742808449532,0.7827,2089.2,2089.1,4.78675]
[1742808449715,5.28501699,2089.5,2089.4,4.78606]
[1742808450120,5.28501699,2089.5,2089.2,4.78645]
[1742808450598,4.78607,2089.4,2089.0,4.78689]
[1742808450987,4.78607,2089.4,2089.0,5.1431701]
[1742808451634,4.78607,2089.4,2089.0,9.9299901]
[1742808451832,9.57235,2089.4,2089.0,5.1431001]
[1742808451989,4.78607,2089.4,2089.0,0.3562801]
[1742808452194,4.78675,2089.1,2089.0,0.3562801]
[1742808452610,4.78675,2089.1,2088.9,26.462]
[1742808453795,4.78659,2089.2,2088.9,26.462]
[1742808454425,9.57329,2089.2,2088.9,26.462]
[1742808455120,4.78659,2089.2,2088.9,26.462]
[1742808455821,9.57329,2089.2,2088.9,26.462]
[1742808456634,4.78678,2089.1,2088.9,26.462]
[1742808460428,4.78675,2089.1,2089.0,0.44632905]
[1742808460736,4.78675,2089.1,2088.9,26.462]
[1742808461233,4.78659,2089.2,2088.9,26.462]
[1742808461459,10.80191457,2089.2,2088.9,31.069]
[1742808462633,6.01520457,2089.2,2088.9,31.069]
[1742808462836,6.01520457,2089.2,2088.9,4.607]
[1742808463148,1.22861457,2089.2,2088.9,9.39408]
[1742808463350,5.61241,2089.3,2089.1,4.78664]
[1742808463351,0.8261,2089.3,2089.1,4.78664]
[1742808463510,5.28501699,2089.4,2089.1,4.78665]
[1742808463704,5.28501699,2089.4,2089.1,3.0]
[1742808463959,5.60891,2089.3,2089.1,3.0]
[1742808464132,0.8226,2089.3,2089.2,0.44624267]
[1742808466049,5.60889,2089.3,2089.2,0.44624267]
[1742808466846,0.8226,2089.3,2089.2,0.44624267]
[1742808467543,4.78564,2089.6,2089.3,4.78621]
[1742808467913,4.78564,2089.6,2089.3,9.39321]
[1742808468317,4.78564,2089.6,2089.3,4.607]
[1742808468912,4.78564,2089.6,2089.3,4.96398901]
[1742808469255,5.59119,2089.7,2089.3,4.96398901]
[1742808469421,4.78539,2089.7,2089.3,4.96398901]
[1742808469626,4.78539,2089.7,2089.3,9.75010901]
[1742808470539,4.78561,2089.6,2089.4,0.4462174]
[1742808470747,4.78561,2089.6,2089.4,0.80320641]
[1742808471044,10.07021699,2089.8,2089.4,5.58925641]
[1742808471245,10.07021699,2089.8,2089.4,11.92839405]
[1742808471547,10.07021699,2089.8,2089.5,5.2320274]
[1742808471914,10.07021699,2089.8,2089.5,5.58901641]
[1742808472116,10.07021699,2089.8,2089.5,0.80320641]
[1742808472314,14.85552699,2089.8,2089.5,0.80320641]
[1742808472716,14.85552699,2089.8,2089.5,0.35698901]
[1742808472917,10.85927699,2089.9,2089.5,0.35698901]
[1742808473236,15.64435699,2089.9,2089.5,6.66891791]
[1742808473435,15.64435699,2089.9,2089.6,0.44596594]
[1742808473641,4.78514,2089.8,2089.6,0.44596594]
[1742808474515,4.78514,2089.8,2089.5,5.69392901]
[1742808476774,4.78514,2089.8,2089.6,0.44589422]
[1742808482053,15.64430699,2089.9,2089.6,0.44589422]
[1742808482933,5.28501699,2089.9,2089.6,5.23135422]
[1742808483132,8.56813,2090.2,2089.8,4.78506]
[1742808483355,3.0,2090.0,2089.7,9.39135]
[1742808483524,3.0,2090.0,2089.7,9.83711422]
[1742808484577,0.7838,2090.2,2089.7,5.05189422]
[1742808484863,3.0,2090.2,2090.0,4.78468]
[1742808485840,3.0,2090.2,2090.0,9.56925]
[1742808486041,3.0,2090.2,2090.0,4.78457]
[1742808486651,3.0,2090.2,2089.9,10.01555422]
[1742808487374,3.0,2090.2,2089.9,5.23066422]
[1742808487671,3.0,2090.2,2089.9,4.78477]
[1742808487964,3.0,2090.2,2089.9,9.56954]
[1742808488167,3.0,2090.2,2090.1,4.78446]
[1742808488371,3.0,2090.2,2090.1,9.39046]
[1742808488585,0.8074,2090.6,2090.4,4.7837]
[1742808488771,4.78317,2090.7,2090.3,4.78393]
[1742808488940,4.78343,2090.6,2090.2,4.78419]
[1742808489475,4.78343,2090.6,2090.2,5.23002422]
[1742808489986,4.78343,2090.6,2090.3,4.78395]
[1742808490142,4.78343,2090.6,2090.2,5.23002422]
[1742808490344,9.56689,2090.6,2090.2,5.23002422]
[1742808490539,4.78343,2090.6,2090.2,6.7828205]
[1742808490747,4.78343,2090.6,2090.2,5.22997422]
[1742808490961,4.78343,2090.6,2090.3,4.78398]
[1742808491242,7.784,2090.3,2090.2,0.44589422]
[1742808491447,8.5586,2090.3,2090.2,0.44589422]
[1742808491783,3.0,2090.3,2090.2,0.44589422]
[1742808491978,3.0,2090.3,2090.0,31.23464]
[1742808492143,7.78408,2090.3,2090.0,31.23464]
[1742808492966,4.78428,2090.2,2090.0,26.45]
[1742808493605,9.5687,2090.2,2090.0,26.45]
[1742808493785,4.78446,2090.1,2090.0,26.45]
[1742808494386,7.78446,2090.1,2090.0,26.45]
[1742808495826,3.0,2090.1,2090.0,26.45]
[1742808496022,3.0,2090.2,2090.0,26.45]
[1742808496721,3.0,2090.2,2090.0,31.23468]
[1742808496923,7.78423,2090.2,2090.0,26.45]
[1742808499361,7.78423,2090.2,2089.9,4.605]
[1742808499650,4.78455,2090.1,2089.9,4.605]
[1742808501034,7.78423,2090.2,2089.9,4.605]
[1742808501923,4.78449,2090.1,2089.9,4.605]
[1742808502106,5.55169,2090.1,2089.9,4.605]
[1742808502912,0.7672,2090.1,2089.9,4.605]
[1742808504528,3.0,2090.2,2089.9,4.605]
[1742808504827,3.0,2090.2,2089.9,9.38988]
[1742808505396,4.7846,2090.1,2089.9,4.605]
[1742808505727,4.7846,2090.1,2089.9,4.96125414]
[1742808506328,8.60213,2090.2,2089.9,4.96125414]
[1742808507000,4.78449,2090.1,2089.9,4.96125414]
[1742808507800,4.78453,2090.1,2089.9,4.96125414]
[1742808508332,4.78453,2090.1,2089.9,4.605]
[1742808509220,4.78453,2090.1,2089.9,4.96125414]
[1742808509632,8.60215,2090.2,2089.9,4.96125414]
[1742808510017,13.38657,2090.2,2089.9,4.96125414]
[1742808510327,9.56911,2090.1,2089.7,5.09275414]
[1742808510501,9.56911,2090.1,2089.8,4.605]
[1742808510697,4.7845,2090.1,2089.8,4.605]
[1742808511432,4.7845,2090.1,2089.8,9.39013]
[1742808511733,7.78425,2090.2,2089.8,14.17513]
[1742808512027,3.0,2090.2,2089.9,4.7849]
[1742808512231,7.78427,2090.2,2089.9,4.7849]
[1742808512821,7.78427,2090.2,2089.9,4.78482]
[1742808513131,7.78427,2090.2,2089.8,13.48314841]
[1742808513316,7.78427,2090.2,2089.9,1.85759426]
[1742808513521,7.78427,2090.2,2089.9,6.64248426]
[1742808513920,7.78427,2090.2,2089.9,1.85759426]
[1742808514833,7.78427,2090.2,2089.9,6.64249426]
[1742808515333,3.0,2090.2,2089.9,6.64249426]
[1742808516039,0.802,2090.4,2090.0,1.60324843]
[1742808516203,5.28501699,2090.5,2090.4,4.78377]
[1742808516531,10.06788699,2090.8,2090.4,4.78377]
[1742808516731,4.78308,2090.7,2090.4,4.78377]
[1742808517104,3.0,2090.7,2090.4,4.78377]
[1742808517398,7.78316,2090.7,2090.4,4.78377]
[1742808518332,5.28501699,2090.8,2090.5,4.78331]
[1742808518837,5.28501699,2090.8,2090.6,4.78325]
[1742808519036,5.28501699,2090.8,2090.6,4.53325]
[1742808519334,0.7647,2091.0,2090.7,4.78298]
[1742808519522,10.06703699,2091.2,2090.8,4.78276]
[1742808519716,3.0,2091.1,2090.8,4.78276]
[1742808519916,3.0,2091.1,2090.8,4.78269]
[1742808520317,3.0,2091.1,2090.8,9.56541]
[1742808520531,3.0,2091.1,2090.8,4.78269]
[1742808520908,7.78221,2091.1,2090.7,4.78303]
[1742808521618,6.05371699,2091.2,2090.8,4.78285]
[1742808521812,10.83567699,2091.2,2090.9,4.7826]
[1742808522018,3.0,2091.2,2091.0,4.7824]
[1742808522222,3.0,2091.2,2091.0,0.3074]
[1742808522640,3.0,2091.2,2090.9,9.56498]
[1742808523014,4.78149,2091.4,2091.0,4.78223]
[1742808523015,7.78154,2091.4,2091.0,4.78223]
[1742808523235,7.78154,2091.4,2091.0,9.56455]
[1742808523438,7.78154,2091.4,2091.0,4.78223]
[1742808523636,7.78154,2091.4,2091.1,4.78216]
[1742808523836,7.78154,2091.4,2091.0,9.38533]
[1742808524445,3.0,2091.2,2091.0,9.38533]
[1742808524813,3.0,2091.2,2091.0,4.603]
[1742808525214,7.78198,2091.2,2091.0,4.603]
[1742808525447,4.78253,2091.0,2090.6,4.78329]
[1742808525621,4.8303595,2091.0,2090.6,4.78329]
[1742808525828,9.6129795,2091.0,2090.6,4.78329]
[1742808526016,4.78268,2090.9,2090.6,4.78329]
[1742808526350,5.54511,2091.1,2090.5,4.603]
[1742808526550,5.54511,2091.1,2090.8,4.78282]
[1742808526551,0.7629,2091.1,2090.8,4.78282]
[1742808526849,7.78204,2091.2,2090.8,4.78282]
[1742808527142,3.0,2091.1,2090.8,4.78271]
[1742808527529,3.0,2091.1,2090.8,9.56543]
[1742808527730,3.0,2091.1,2090.8,4.78271]